bitfinex/quotes_SOLUSD_20251228
["timestamp","ask_amount","ask_price","bid_price","bid_amount"]
[1766891682712,3.7374324,124.25,124.23,0.2]
[1766891686920,3.0374324,124.24,124.23,0.2]
[1766891688715,3.0374324,124.24,124.22,0.88]
[1766891688716,3.0374324,124.24,124.22,0.2]
[1766891688895,3.7374324,124.23,124.21,0.2]
[1766891689096,3.0374324,124.22,124.21,0.2]
[1766891697930,1.94522291,124.22,124.21,0.2]
[1766891700233,0.53,124.21,124.2,0.2]
[1766891700432,2.47522291,124.21,124.19,0.2]
[1766891700630,1.94522291,124.2,124.19,0.2]
[1766891701713,1.94522291,124.23,124.2,0.68]
[1766891702925,2.47522291,124.23,124.2,0.68]
[1766891708933,1.94522291,124.22,124.2,0.68]
[1766891715438,2.47522291,124.22,124.2,0.68]
[1766891716337,1.94522291,124.22,124.2,0.68]
[1766891723755,1.94522291,124.22,124.19,0.2]
[1766891723756,1.94522291,124.21,124.19,0.87]
[1766891723926,2.47522291,124.22,124.19,0.87]
[1766891724555,2.47522291,124.22,124.2,0.67]
[1766891724854,1.94522291,124.21,124.19,0.87]
[1766891725847,1.94522291,124.21,124.19,0.2]
[1766891726152,0.53,124.22,124.2,0.67]
[1766891726447,1.94522291,124.21,124.2,0.67]
[1766891726636,1.94522291,124.22,124.2,0.67]
[1766891732651,1.94522291,124.21,124.19,0.87]
[1766891732850,1.94522291,124.21,124.2,0.67]
[1766891733148,1.94522291,124.21,124.19,0.2]
[1766891733454,1.94522291,124.21,124.19,0.87]
[1766891740759,8.58033244,124.22,124.19,0.87]
[1766891740962,1.94522291,124.21,124.19,0.87]
[1766891742858,8.58033244,124.22,124.19,0.87]
[1766891743158,1.94522291,124.21,124.19,0.87]
[1766891747337,2.47522291,124.21,124.19,0.87]
[1766891747537,2.47522291,124.2,124.19,0.2]
[1766891751464,1.94522291,124.2,124.19,0.2]
[1766891753667,8.58111744,124.21,124.19,0.2]
[1766891753869,1.94522291,124.2,124.19,0.2]
[1766891754765,1.94522291,124.2,124.18,0.2]
[1766891755065,1.94522291,124.19,124.18,0.2]
[1766891756855,8.38170539,124.2,124.18,0.2]
[1766891757056,1.94522291,124.19,124.18,0.2]
[1766891757975,3.04072142,124.19,124.18,0.2]
[1766891760871,3.04072142,124.21,124.19,0.71]
[1766891761588,15.05,124.22,124.19,0.71]
[1766891761758,3.04072142,124.22,124.19,0.71]
[1766891761951,3.37072142,124.22,124.19,0.71]
[1766891762774,3.04072142,124.21,124.19,0.71]
[1766891773485,3.37072142,124.21,124.19,0.71]
[1766891773685,3.04072142,124.2,124.19,0.71]
[1766891775667,3.37072142,124.2,124.18,0.2]
[1766891775988,3.04072142,124.19,124.18,0.2]
[1766891781870,3.37072142,124.19,124.18,0.2]
[1766891782174,3.04072142,124.19,124.18,0.2]
[1766891785897,8.3815862,124.2,124.18,0.2]
[1766891786104,3.04072142,124.19,124.18,0.2]
[1766891794324,8.3815862,124.2,124.18,0.2]
[1766891794507,3.04072142,124.19,124.18,0.2]
[1766891800610,8.3815862,124.2,124.18,0.2]
[1766891800911,3.04072142,124.19,124.18,0.86]
[1766891801516,0.33,124.2,124.18,0.86]
[1766891801695,3.37072142,124.2,124.18,0.86]
[1766891803508,3.04072142,124.2,124.18,0.86]
[1766891804907,3.37072142,124.2,124.18,0.86]
[1766891805617,3.04072142,124.19,124.18,0.86]
[1766891811334,0.33,124.2,124.18,0.86]
[1766891811503,3.04072142,124.19,124.18,0.2]
[1766891817325,28.17658021,124.22,124.18,0.87]
[1766891817529,3.04072142,124.19,124.18,0.87]
[1766891819134,3.04072142,124.21,124.19,0.67]
[1766891819327,3.71072142,124.21,124.19,0.67]
[1766891819517,3.04072142,124.2,124.18,0.87]
[1766891819720,3.04072142,124.2,124.19,0.67]
[1766891819919,1.94564229,124.2,124.19,0.67]
[1766891820835,4.56128458,124.2,124.17,0.67]
[1766891821013,1.94564229,124.18,124.17,0.67]
[1766891826735,1.94564229,124.19,124.17,0.67]
[1766891829443,8.72157082,124.2,124.17,0.67]
[1766891829737,1.94564229,124.19,124.17,0.67]
[1766891838841,0.67,124.2,124.17,0.67]
[1766891839022,2.61564229,124.2,124.17,0.67]
[1766891840541,0.67,124.2,124.17,0.67]
[1766891840743,2.61564229,124.2,124.17,0.67]
[1766891849950,1.94564229,124.21,124.17,0.67]
[1766891850550,8.77025875,124.22,124.17,1.94564229]
[1766891850748,10.71590104,124.22,124.18,0.7]
[1766891851046,15.44,124.23,124.19,0.7]
[1766891851258,1.94564229,124.22,124.19,0.7]
[1766891851849,2.66564229,124.22,124.19,0.7]
[1766891853851,0.72,124.22,124.19,0.7]
[1766891854037,1.94564229,124.21,124.19,0.7]
[1766891864042,1.94564229,124.2,124.17,0.69]
[1766891864367,1.94564229,124.19,124.17,0.69]
[1766891867364,8.72089779,124.21,124.17,0.69]
[1766891867541,1.94564229,124.19,124.17,0.69]
[1766891871963,2.61564229,124.2,124.17,0.69]
[1766891873748,1.94564229,124.2,124.17,0.69]
[1766891876973,2.62564229,124.21,124.17,0.69]
[1766891877274,2.62564229,124.21,124.18,0.66]
[1766891879876,0.68,124.21,124.18,0.66]
[1766891880074,3.71975604,124.21,124.18,0.66]
[1766891881480,0.68,124.21,124.18,0.66]
[1766891881777,3.71975604,124.21,124.18,0.66]
[1766891882081,0.68,124.21,124.18,0.66]
[1766891882578,3.71975604,124.21,124.18,0.66]
[1766891902882,3.03975604,124.2,124.18,0.66]
[1766891903697,0.68,124.21,124.18,0.66]
[1766891903876,3.03975604,124.2,124.18,0.66]
[1766891916902,3.71975604,124.21,124.18,0.66]
[1766891920005,3.03975604,124.2,124.18,0.66]
[1766891936218,3.03975604,124.19,124.16,0.2]
[1766891936411,3.03975604,124.17,124.15,0.67]
[1766891936614,3.03975604,124.16,124.14,0.67]
[1766891938000,3.71975604,124.16,124.14,0.67]
[1766891938321,3.03975604,124.15,124.12,0.67]
[1766891938723,3.03975604,124.13,124.11,0.77]
[1766891939724,3.71975604,124.14,124.11,0.77]
[1766891939904,3.71975604,124.14,124.1,25.6876785]
[1766891941821,3.71975604,124.14,124.1,22.64792246]
[1766891941999,2.62758724,124.14,124.11,0.17]
[1766891944226,1.94758724,124.15,124.12,0.67]
[1766891944730,2.62758724,124.15,124.12,0.67]
[1766891949929,1.94758724,124.14,124.12,0.67]
[1766891951123,2.62758724,124.14,124.11,0.67]
[1766891952911,0.68,124.14,124.11,0.67]
[1766891953330,0.68,124.14,124.11,8.72735645]
[1766891954908,2.62758724,124.14,124.11,0.67]
[1766891963342,0.68,124.14,124.11,0.67]
[1766891970542,0.72,124.17,124.12,0.67]
[1766891970718,0.72,124.16,124.13,0.67]
[1766891971123,0.72,124.16,124.13,2.61758724]
[1766891972624,0.72,124.16,124.14,0.67]
[1766891975849,0.72,124.16,124.13,0.67]
[1766891989354,2.66758724,124.16,124.13,0.67]
[1766891989532,2.60758724,124.16,124.13,0.67]
[1766891989734,1.94758724,124.16,124.13,0.67]
[1766891990052,0.66,124.14,124.11,15.4]
[1766891990238,2.60758724,124.14,124.11,15.4]
[1766891990433,1.94758724,124.14,124.11,0.68]
[1766891990670,2.60758724,124.13,124.1,77.3]
[1766891990848,2.60758724,124.13,124.1,15.4]
[1766891991367,2.60758724,124.13,124.11,0.68]
[1766891991967,0.66,124.13,124.11,0.68]
[1766891992176,0.66,124.13,124.1,16.66758724]
[1766891992454,0.66,124.13,124.1,17.34758724]
[1766891995078,0.66,124.13,124.1,0.68]
[1766891997088,2.60758724,124.13,124.1,0.68]
[1766891999182,0.66,124.13,124.1,0.68]
[1766892015785,0.66,124.13,124.1,8.73756179]
[1766892017994,0.66,124.13,124.09,11.10156615]
[1766892018289,0.66,124.13,124.09,11.78156615]
[1766892018991,0.66,124.13,124.1,0.68]
[1766892019808,0.66,124.13,124.09,11.78156615]
[1766892020915,0.66,124.13,124.09,8.73841986]
[1766892030124,0.66,124.13,124.1,0.68]
[1766892031027,3.04314629,124.13,124.09,8.73841986]
[1766892031205,0.67,124.12,124.09,23.45841986]
[1766892033826,0.67,124.12,124.09,8.73841986]
[1766892035925,0.67,124.12,124.09,11.78156615]
[1766892053341,8.05411859,124.17,124.1,3.04314629]
[1766892053557,20.13117047,124.19,124.12,3.72314629]
[1766892053558,3.04314629,124.16,124.12,3.72314629]
[1766892053730,0.67,124.15,124.12,3.04314629]
[1766892054946,3.04314629,124.15,124.12,3.04314629]
[1766892055242,0.67,124.14,124.12,3.04314629]
[1766892058446,8.0532516,124.18,124.12,11.09969792]
[1766892058643,0.67,124.15,124.12,11.77969792]
[1766892061550,0.67,124.15,124.12,3.72314629]
[1766892062051,0.67,124.15,124.12,3.04314629]
[1766892062348,0.67,124.16,124.13,3.72314629]
[1766892062941,3.04314629,124.17,124.13,3.04314629]
[1766892063150,0.67,124.18,124.15,3.72314629]
[1766892063933,0.67,124.18,124.15,2.62609727]
[1766892067458,1.94609727,124.19,124.15,1.94609727]
[1766892067637,0.67,124.18,124.15,1.94609727]
[1766892069346,0.67,124.18,124.15,2.62609727]
[1766892074039,0.67,124.17,124.14,10.68111647]
[1766892074256,0.67,124.16,124.13,16.66609727]
[1766892074453,0.67,124.16,124.13,17.34609727]
[1766892076851,0.72,124.15,124.12,63.84609727]
[1766892077439,0.72,124.15,124.12,64.52609727]
[1766892078261,1.94609727,124.17,124.13,2.62609727]
[1766892078441,0.72,124.16,124.13,2.62609727]
[1766892078782,0.72,124.16,124.13,10.68207763]
[1766892087472,0.72,124.16,124.13,8.73598036]
[1766892087654,0.72,124.16,124.13,10.68207763]
[1766892102184,0.72,124.16,124.14,1.94609727]
[1766892102385,0.72,124.16,124.14,2.62609727]
[1766892103982,8.05223452,124.19,124.14,2.62609727]
[1766892104191,0.72,124.17,124.14,2.62609727]
[1766892120518,8.05181626,124.2,124.15,2.62609727]
[1766892120680,2.59609727,124.19,124.16,0.68]
[1766892121095,2.59609727,124.19,124.16,2.62609727]
[1766892121681,0.65,124.18,124.16,2.62609727]
[1766892121989,9.99791353,124.2,124.16,2.62609727]
[1766892122180,0.65,124.19,124.17,1.94609727]
[1766892122384,0.65,124.2,124.17,2.62609727]
[1766892125193,0.65,124.2,124.17,1.94609727]
[1766892125807,0.65,124.19,124.17,1.94609727]
[1766892125989,0.65,124.19,124.17,3.03998602]
[1766892126507,0.65,124.19,124.16,8.73411671]
[1766892126812,0.65,124.19,124.16,11.77410273]
[1766892134504,0.65,124.19,124.16,3.71998602]
[1766892135128,0.65,124.19,124.16,3.03998602]
[1766892136114,0.65,124.19,124.16,3.71998602]
[1766892145833,0.65,124.19,124.16,3.03998602]
[1766892147535,0.65,124.19,124.16,3.71998602]
[1766892147736,0.67,124.18,124.15,11.77452928]
[1766892148037,0.67,124.18,124.16,3.03998602]
[1766892152226,0.67,124.18,124.16,3.71998602]
[1766892155442,0.67,124.18,124.16,0.68]
[1766892156037,0.67,124.18,124.16,3.71998602]
[1766892173158,0.67,124.18,124.14,20.13848824]
[1766892173374,3.03998602,124.16,124.12,22.77652397]
[1766892173563,0.7,124.15,124.12,26.49650999]
[1766892173867,0.7,124.15,124.13,3.03998602]
[1766892174458,0.7,124.15,124.13,11.77575846]
[1766892179464,0.7,124.15,124.13,8.73577244]
[1766892179760,0.7,124.15,124.13,11.77575846]
[1766892183264,0.7,124.15,124.14,3.03998602]
[1766892183480,0.7,124.18,124.15,0.68]
[1766892183651,0.7,124.18,124.15,3.71998602]
[1766892184152,0.7,124.18,124.15,3.03998602]
[1766892184880,0.7,124.18,124.16,3.03998602]
[1766892187986,0.7,124.18,124.16,1.9457741]
[1766892189382,0.7,124.16,124.11,82.72255066]
[1766892189668,2.6457741,124.15,124.12,0.68]
[1766892190073,2.6457741,124.15,124.12,10.68235767]
[1766892191156,0.7,124.14,124.11,10.68287721]
[1766892192059,0.7,124.14,124.11,0.68]
[1766892192264,0.7,124.13,124.1,25.40350953]
[1766892196684,0.7,124.13,124.11,1.9457741]
[1766892197981,0.67,124.14,124.11,2.6057741]
[1766892198782,0.67,124.14,124.11,10.66313144]
[1766892202990,0.67,124.14,124.11,8.71735734]
[1766892203190,0.67,124.14,124.11,10.66313144]
[1766892212990,0.67,124.14,124.12,1.9457741]
[1766892215876,0.67,124.14,124.11,8.71735734]
[1766892216081,0.67,124.14,124.12,1.9457741]
[1766892221106,1.9457741,124.16,124.12,1.9457741]
[1766892221283,0.67,124.15,124.12,2.6057741]
[1766892222609,0.67,124.15,124.12,1.9457741]
[1766892228912,0.67,124.15,124.12,10.00216247]
[1766892229096,0.71,124.16,124.13,2.6157741]
[1766892229292,0.71,124.16,124.14,2.6157741]
[1766892230096,0.71,124.16,124.13,0.67]
[1766892230410,0.71,124.16,124.14,1.9457741]
[1766892247943,0.71,124.16,124.14,3.04136299]
[1766892250920,0.71,124.16,124.14,3.71136299]
[1766892256437,0.71,124.16,124.14,3.04136299]
[1766892257445,0.67,124.17,124.14,3.72136299]
[1766892264055,0.67,124.19,124.15,3.04136299]
[1766892264245,0.67,124.19,124.16,3.04136299]
[1766892264447,0.67,124.19,124.16,3.72136299]
[1766892265160,0.67,124.19,124.17,3.04136299]
[1766892273078,0.67,124.2,124.18,3.04136299]
[1766892281500,0.67,124.2,124.17,3.72136299]
[1766892285500,0.67,124.2,124.18,3.04136299]
[1766892285710,17.76136299,124.22,124.18,3.72136299]
[1766892285711,0.68,124.21,124.18,3.72136299]
[1766892285871,0.68,124.21,124.19,3.04136299]
[1766892293006,0.68,124.21,124.18,3.72136299]
[1766892293504,0.66,124.23,124.2,3.04136299]
[1766892294081,3.04136299,124.23,124.19,3.72136299]
[1766892294284,0.66,124.22,124.19,3.72136299]
[1766892295108,3.04136299,124.21,124.17,11.7747946]
[1766892295283,0.66,124.2,124.17,11.7747946]
[1766892296010,0.66,124.2,124.18,0.68]
[1766892296188,0.66,124.2,124.18,3.72136299]
[1766892300618,0.66,124.2,124.18,3.04136299]
[1766892300937,0.66,124.2,124.17,11.7747946]
[1766892303030,0.66,124.19,124.16,3.72136299]
[1766892307940,0.66,124.19,124.16,10.67995182]
[1766892319454,0.66,124.19,124.16,8.73402595]
[1766892319644,0.66,124.19,124.16,10.67995182]
[1766892324959,0.66,124.19,124.17,1.94592587]
[1766892332468,0.66,124.19,124.16,8.73402595]
[1766892332761,0.66,124.19,124.17,1.94592587]
[1766892340367,0.66,124.19,124.16,8.73402595]
[1766892340550,0.66,124.19,124.17,1.94592587]
[1766892341469,0.66,124.19,124.16,10.67995182]
[1766892342269,0.66,124.19,124.17,1.94592587]
[1766892350788,0.66,124.19,124.16,8.73402595]
[1766892351077,0.71,124.18,124.14,87.30091355]
[1766892351260,0.71,124.18,124.15,1.94592587]
[1766892353383,0.71,124.18,124.16,1.94592587]
[1766892354565,0.71,124.18,124.15,1.94592587]
[1766892356280,0.71,124.18,124.16,1.94592587]
[1766892358493,0.71,124.18,124.14,23.45498768]
[1766892358791,0.71,124.18,124.16,1.94592587]
[1766892362597,0.71,124.18,124.15,2.62592587]
[1766892368012,0.71,124.18,124.15,3.72055012]
[1766892381721,0.71,124.18,124.15,0.68]
[1766892382025,0.71,124.18,124.15,3.72055012]
[1766892383926,0.71,124.18,124.15,11.77531466]
[1766892391321,0.71,124.18,124.15,8.73476454]
[1766892391520,0.71,124.18,124.15,11.77531466]
[1766892398352,0.71,124.18,124.15,8.73476454]
[1766892398655,0.71,124.18,124.15,11.77531466]
[1766892401960,0.71,124.18,124.15,8.73476454]
[1766892402147,0.71,124.18,124.15,11.77531466]
[1766892406361,0.71,124.18,124.15,8.73476454]
[1766892407066,0.71,124.18,124.15,11.77531466]
[1766892409564,0.71,124.18,124.15,11.09531466]
[1766892409783,0.71,124.18,124.15,11.77531466]
[1766892416075,0.71,124.18,124.15,3.04055012]
[1766892420787,0.71,124.18,124.15,3.69055012]
[1766892424901,0.71,124.18,124.16,3.04055012]
[1766892429990,0.71,124.18,124.16,1.94593432]
[1766892433402,0.71,124.18,124.15,10.65043755]
[1766892436489,0.71,124.18,124.15,10.00043755]
[1766892437494,0.71,124.18,124.15,10.68043755]
[1766892444395,8.05094695,124.21,124.15,10.00043755]
[1766892444580,0.71,124.19,124.16,2.62593432]
[1766892445397,2.65593432,124.19,124.16,2.62593432]
[1766892448001,2.65593432,124.18,124.15,0.68]
[1766892448172,0.71,124.18,124.15,2.62593432]
[1766892450497,0.71,124.18,124.14,8.73506808]
[1766892450796,0.71,124.16,124.13,10.68176905]
[1766892451905,0.71,124.16,124.13,2.62593432]
[1766892452207,2.65593432,124.16,124.13,0.68]
[1766892453600,0.71,124.15,124.13,1.94593432]
[1766892454295,0.71,124.15,124.13,2.62593432]
[1766892455005,0.71,124.15,124.13,1.94593432]
[1766892455602,0.71,124.15,124.12,2.62593432]
[1766892457400,0.71,124.15,124.12,0.68]
[1766892457701,0.71,124.15,124.12,2.62593432]
[1766892458001,0.71,124.15,124.12,0.68]
[1766892458201,0.71,124.15,124.12,2.62593432]
[1766892464390,0.71,124.15,124.12,0.68]
[1766892464590,0.71,124.15,124.12,2.62593432]
[1766892470896,0.71,124.15,124.12,1.94593432]
[1766892472209,0.71,124.15,124.13,1.94593432]
[1766892473998,0.71,124.15,124.12,2.62593432]
[1766892479320,2.61593432,124.14,124.1,14.72]
[1766892479616,2.61593432,124.14,124.11,0.68]
[1766892481223,0.67,124.13,124.11,0.68]
[1766892482009,0.67,124.13,124.1,2.62593432]
[1766892482211,1.94593432,124.13,124.09,10.00460141]
[1766892482410,0.67,124.12,124.09,0.68]
[1766892482622,0.67,124.12,124.09,2.62593432]
[1766892484424,0.67,124.12,124.1,1.94593432]
[1766892484607,0.67,124.12,124.1,0.68]
[1766892484930,0.67,124.12,124.1,1.94593432]
[1766892486721,0.67,124.13,124.1,2.62593432]
[1766892489932,0.67,124.13,124.1,3.04331801]
[1766892491142,0.67,124.13,124.09,0.68]
[1766892491320,0.67,124.13,124.1,3.04331801]
[1766892491515,0.67,124.13,124.09,0.68]
[1766892491726,3.71331801,124.13,124.09,3.72331801]
[1766892491925,3.04331801,124.13,124.09,3.72331801]
[1766892492227,0.67,124.12,124.09,3.72331801]
[1766892496739,3.04331801,124.12,124.08,3.79331801]
[1766892496945,0.72,124.11,124.08,3.79331801]
[1766892498943,0.72,124.11,124.08,3.14331801]
[1766892499320,0.72,124.11,124.08,3.79331801]
[1766892500546,0.72,124.11,124.08,0.75]
[1766892500841,0.72,124.11,124.08,3.79331801]
[1766892504052,3.04331801,124.11,124.08,0.1]
[1766892504346,0.72,124.1,124.08,0.75]
[1766892504648,0.72,124.1,124.08,3.79331801]
[1766892505141,0.72,124.1,124.08,0.75]
[1766892505447,0.72,124.1,124.08,3.79331801]
[1766892507241,0.72,124.1,124.08,0.75]
[1766892507540,0.72,124.1,124.08,3.79331801]
[1766892507743,0.72,124.1,124.08,0.1]
[1766892507963,0.72,124.09,124.08,0.1]
[1766892520057,3.76331801,124.11,124.08,0.1]
[1766892520238,0.72,124.11,124.08,3.79331801]
[1766892521535,14.72,124.12,124.09,0.65]
[1766892521758,15.44,124.12,124.09,3.69331801]
[1766892522548,14.72,124.12,124.09,3.69331801]
[1766892522755,0.72,124.11,124.09,3.69331801]
[1766892524354,15.44,124.12,124.09,3.69331801]
[1766892524656,0.72,124.12,124.09,3.69331801]
[1766892527062,0.72,124.12,124.09,3.04331801]
[1766892527359,3.76331801,124.12,124.08,11.87229176]
[1766892527855,3.04331801,124.12,124.08,11.87229176]
[1766892528059,3.70331801,124.12,124.08,11.87229176]
[1766892528266,0.66,124.11,124.08,11.87229176]
[1766892529762,0.66,124.11,124.08,11.20229176]
[1766892529967,0.66,124.11,124.09,3.72331801]
[1766892532257,0.66,124.11,124.09,3.04331801]
[1766892533057,0.66,124.11,124.09,3.72331801]
[1766892534348,0.66,124.11,124.09,3.04331801]
[1766892537382,0.66,124.11,124.09,3.72331801]
[1766892544279,0.66,124.11,124.08,0.1]
[1766892544575,0.66,124.11,124.09,3.04331801]
[1766892549979,0.66,124.11,124.09,1.94812007]
[1766892551483,0.66,124.11,124.08,0.78]
[1766892551783,0.66,124.11,124.09,1.94812007]
[1766892563695,0.71,124.12,124.09,2.60812007]
[1766892568699,0.71,124.12,124.09,0.66]
[1766892568904,0.71,124.12,124.09,2.60812007]
[1766892570709,8.056102,124.13,124.1,0.66]
[1766892570997,8.056102,124.13,124.1,1.94812007]
[1766892571200,8.056102,124.13,124.11,0.66]
[1766892571404,8.766102,124.13,124.1,2.60812007]
[1766892571899,8.056102,124.13,124.1,2.60812007]
[1766892572198,0.71,124.12,124.1,1.94812007]
[1766892572403,0.71,124.12,124.1,2.60812007]
[1766892583017,0.71,124.13,124.11,1.94812007]
[1766892589309,0.71,124.13,124.1,0.66]
[1766892589515,0.71,124.13,124.11,1.94812007]
[1766892594110,0.71,124.13,124.1,2.60812007]
[1766892601128,16.66812007,124.15,124.11,1.94812007]
[1766892601309,20.13137331,124.19,124.14,2.62812007]
[1766892601310,0.69,124.17,124.14,2.62812007]
[1766892601627,20.13137331,124.19,124.16,1.94812007]
[1766892601628,0.69,124.19,124.16,1.94812007]
[1766892601798,20.82137331,124.2,124.17,2.62812007]
[1766892602123,0.69,124.2,124.18,1.94812007]
[1766892602419,14.72,124.21,124.19,2.62812007]
[1766892604625,0.69,124.22,124.19,2.62812007]
[1766892610122,0.69,124.22,124.19,3.71880488]
[1766892617120,0.69,124.22,124.17,8.05332752]
[1766892617429,3.68880488,124.21,124.18,3.03880488]
[1766892617637,3.68880488,124.21,124.18,3.69880488]
[1766892618433,3.68880488,124.21,124.18,0.66]
[1766892619834,0.65,124.21,124.18,0.66]
[1766892620637,0.65,124.21,124.18,3.69880488]
[1766892626047,0.65,124.21,124.18,0.66]
[1766892626251,0.65,124.21,124.18,3.69880488]
[1766892631452,0.65,124.21,124.18,0.66]
[1766892632327,0.65,124.21,124.17,11.7521324]
[1766892634150,0.65,124.21,124.18,0.66]
[1766892634358,0.65,124.21,124.19,3.03880488]
[1766892636155,0.65,124.23,124.2,3.03880488]
[1766892636757,3.68880488,124.23,124.2,3.03880488]
[1766892636949,0.65,124.22,124.2,3.03880488]
[1766892638463,0.65,124.22,124.19,3.69880488]
[1766892644856,0.65,124.22,124.19,0.66]
[1766892646042,0.65,124.22,124.19,3.69880488]
[1766892647464,0.65,124.22,124.19,3.03880488]
[1766892648772,0.65,124.22,124.18,11.75162167]
[1766892652966,0.65,124.22,124.19,0.68]
[1766892658874,0.65,124.22,124.19,11.77092756]
[1766892659986,0.65,124.22,124.2,3.03880488]
[1766892660275,0.65,124.22,124.19,11.77092756]
[1766892660453,0.65,124.22,124.19,3.71880488]
[1766892668589,0.65,124.22,124.19,0.68]
[1766892668881,0.65,124.22,124.19,3.71880488]
[1766892671987,0.65,124.22,124.19,2.62494168]
[1766892673884,1.94494168,124.22,124.18,1.94494168]
[1766892674088,0.7,124.18,124.16,60.0]
[1766892674263,0.7,124.17,124.16,60.0]
[1766892678088,0.71,124.18,124.16,60.0]
[1766892678875,0.71,124.19,124.16,62.62494168]
[1766892681689,0.71,124.19,124.17,1.94494168]
[1766892687169,0.71,124.19,124.16,60.68]
[1766892687369,0.71,124.19,124.17,1.94494168]
[1766892688996,0.71,124.19,124.16,62.62494168]
[1766892692694,0.71,124.19,124.16,61.94494168]
[1766892692989,0.71,124.19,124.16,62.62494168]
[1766892694378,0.71,124.2,124.17,1.94494168]
[1766892694591,0.71,124.2,124.16,68.05405572]
[1766892694592,0.71,124.21,124.18,2.62494168]
[1766892697599,0.71,124.21,124.19,1.94494168]
[1766892697792,0.71,124.21,124.19,2.62494168]
[1766892702411,0.71,124.21,124.19,1.94494168]
[1766892702811,0.71,124.21,124.18,0.68]
[1766892703015,0.71,124.21,124.18,2.62494168]
[1766892703204,0.71,124.21,124.18,2.57394168]
[1766892719515,0.71,124.21,124.19,0.63]
[1766892720112,2.64494168,124.22,124.19,0.63]
[1766892720423,15.42,124.23,124.2,2.57494168]
[1766892720901,0.7,124.22,124.2,2.57494168]
[1766892723020,0.7,124.22,124.2,1.94494168]
[1766892723208,0.7,124.22,124.2,2.57494168]
[1766892726923,0.7,124.22,124.2,1.94494168]
[1766892727226,0.7,124.22,124.2,2.57494168]
[1766892727399,0.7,124.22,124.2,1.94494168]
[1766892728614,0.7,124.22,124.19,2.57494168]
[1766892733934,0.7,124.22,124.19,3.66876748]
[1766892738936,0.7,124.22,124.19,3.03876748]
[1766892739239,0.68,124.23,124.2,3.66876748]
[1766892743142,0.68,124.23,124.2,3.03876748]
[1766892743741,0.68,124.23,124.19,0.63]
[1766892743941,0.68,124.23,124.2,3.03876748]
[1766892744245,0.68,124.22,124.19,3.66876748]
[1766892747622,0.68,124.22,124.2,0.63]
[1766892750150,0.68,124.22,124.19,3.03876748]
[1766892750354,0.68,124.22,124.19,3.66876748]
[1766892753048,0.68,124.22,124.2,3.03876748]
[1766892762157,0.68,124.22,124.2,3.66876748]
[1766892762338,0.68,124.22,124.2,0.63]
[1766892765256,0.68,124.22,124.17,28.18716275]
[1766892765567,0.68,124.22,124.19,0.63]
[1766892768962,0.68,124.22,124.19,3.66876748]
[1766892772267,0.3,124.22,124.19,3.66876748]
[1766892783273,0.3,124.22,124.19,3.03876748]
[1766892783475,0.3,124.22,124.2,0.68]
[1766892783672,0.2,124.24,124.21,0.68]
[1766892783858,0.7,124.23,124.2,3.71876748]
[1766892795986,0.7,124.23,124.2,2.62452033]
[1766892809593,0.7,124.23,124.2,0.68]
[1766892809799,0.7,124.23,124.2,2.62452033]
[1766892820906,2.64452033,124.23,124.2,2.62452033]
[1766892823908,0.7,124.23,124.19,8.05203355]
[1766892824107,0.7,124.23,124.21,0.68]
[1766892825404,0.7,124.23,124.21,2.62452033]